[Event "Live Chess"]
[Site "Chess.com"]
[Date "2023.05.21"]
[Round "-"]
[White "garyjc"]
[Black "chessfiction"]
[Result "0-1"]
[WhiteElo "1041"]
[BlackElo "2337"]
[TimeControl "300"]
[EndTime "20:47:37 PDT"]
[Termination "chessfiction won by resignation"]

1. e4 {[%clk 0:04:56.7]} 1... e5 {[%clk 0:04:59.9]} 2. Nf3 {[%clk 0:04:54.6]}
2... d5 {[%clk 0:04:59.2]} 3. Nxe5 {[%clk 0:04:38.1]} 3... Bd6 {[%clk
0:04:57.8]} 4. d4 {[%clk 0:04:22.2]} 4... dxe4 {[%clk 0:04:55.9]} 5. Nc3 {[%clk
0:04:15.4]} 5... Nf6 {[%clk 0:04:53.6]} 6. Bd3 {[%clk 0:03:57.8]} 6... exd3
{[%clk 0:04:51.8]} 7. Qxd3 {[%clk 0:03:54.1]} 7... O-O {[%clk 0:04:49.6]} 8. O-O
{[%clk 0:03:43.7]} 8... Nc6 {[%clk 0:04:45.9]} 9. Nxc6 {[%clk 0:03:38.3]} 9...
bxc6 {[%clk 0:04:45.8]} 10. d5 {[%clk 0:03:33.7]} 10... cxd5 {[%clk 0:04:43.9]}
11. Nxd5 {[%clk 0:03:32.5]} 11... Nxd5 {[%clk 0:04:42.7]} 12. Qxd5 {[%clk
0:03:31.6]} 12... Bxh2+ {[%clk 0:04:41.9]} 13. Kh1 {[%clk 0:03:29.2]} 13... Qxd5
{[%clk 0:04:41.8]} 0-1

[Event "Live Chess"]
[Site "Chess.com"]
[Date "2023.05.21"]
[Round "-"]
[White "Conradical12"]
[Black "manthanit"]
[Result "1-0"]
[WhiteElo "1635"]
[BlackElo "1081"]
[TimeControl "300"]
[EndTime "20:49:40 PDT"]
[Termination "Conradical12 won by checkmate"]

1. d4 {[%clk 0:04:56.2]} 1... e6 {[%clk 0:04:59.4]} 2. c4 {[%clk 0:04:52.3]}
2... d5 {[%clk 0:04:59]} 3. Nc3 {[%clk 0:04:47.4]} 3... c5 {[%clk 0:04:56.4]} 4.
cxd5 {[%clk 0:04:45.2]} 4... exd5 {[%clk 0:04:55.5]} 5. Nf3 {[%clk 0:04:43.7]}
5... Nc6 {[%clk 0:04:51.8]} 6. Bf4 {[%clk 0:04:40]} 6... a6 {[%clk 0:04:50.1]}
7. e3 {[%clk 0:04:36]} 7... h6 {[%clk 0:04:49]} 8. h4 {[%clk 0:04:26.9]} 8...
Nf6 {[%clk 0:04:48.1]} 9. Rc1 {[%clk 0:04:20.2]} 9... Be7 {[%clk 0:04:46.8]} 10.
Bd3 {[%clk 0:04:11.3]} 10... O-O {[%clk 0:04:41.5]} 11. O-O {[%clk 0:04:03.9]}
11... cxd4 {[%clk 0:04:38]} 12. exd4 {[%clk 0:04:00.6]} 12... Bd6 {[%clk
0:04:37.1]} 13. Qd2 {[%clk 0:03:47]} 13... Re8 {[%clk 0:04:15.7]} 14. Bxh6
{[%clk 0:03:34.6]} 14... Ne4 {[%clk 0:04:04.1]} 15. Bxe4 {[%clk 0:03:24.6]}
15... dxe4 {[%clk 0:04:02.9]} 16. d5 {[%clk 0:03:08.7]} 16... exf3 {[%clk
0:03:58.2]} 17. dxc6 {[%clk 0:03:07.7]} 17... bxc6 {[%clk 0:03:49.6]} 18. g3
{[%clk 0:02:41.3]} 18... Qf6 {[%clk 0:03:41]} 19. Bg5 {[%clk 0:02:29.4]} 19...
Qf5 {[%clk 0:03:36.4]} 20. Qd1 {[%clk 0:01:14.6]} 20... Be7 {[%clk 0:03:02.7]}
21. Bxe7 {[%clk 0:00:46.9]} 21... Rxe7 {[%clk 0:02:52.5]} 22. Qd8+ {[%clk
0:00:38.4]} 22... Kh7 {[%clk 0:02:51.3]} 23. Qxe7 {[%clk 0:00:33.3]} 23... Qh3
{[%clk 0:02:46.5]} 24. Qe4+ {[%clk 0:00:31.4]} 24... g6 {[%clk 0:02:44.6]} 25.
Qxf3 {[%clk 0:00:29.8]} 25... Bb7 {[%clk 0:02:39.4]} 26. Qxf7+ {[%clk
0:00:27.3]} 26... Kh6 {[%clk 0:02:38.5]} 27. Qf4+ {[%clk 0:00:24.5]} 27... Kh7
{[%clk 0:02:36.9]} 28. Rcd1 {[%clk 0:00:22.6]} 28... c5 {[%clk 0:02:35.3]} 29.
Rd7+ {[%clk 0:00:21.4]} 29... Kh8 {[%clk 0:02:33.6]} 30. Qh6+ {[%clk 0:00:19.5]}
30... Kg8 {[%clk 0:02:27.6]} 31. Qg7# {[%clk 0:00:19.4]} 1-0

[Event "Live Chess"]
[Site "Chess.com"]
[Date "2023.05.21"]
[Round "-"]
[White "ramses-IIG"]
[Black "chessfiction"]
[Result "0-1"]
[WhiteElo "870"]
[BlackElo "2337"]
[TimeControl "300"]
[EndTime "20:50:41 PDT"]
[Termination "chessfiction won by resignation"]

1. e4 {[%clk 0:04:58.8]} 1... d5 {[%clk 0:04:57.7]} 2. Nf3 {[%clk 0:04:58.7]}
2... dxe4 {[%clk 0:04:56.8]} 3. Ne5 {[%clk 0:04:56.6]} 3... Nc6 {[%clk
0:04:53.9]} 4. Ng4 {[%clk 0:04:54.5]} 4... Nf6 {[%clk 0:04:51.6]} 5. Nxf6+
{[%clk 0:04:52.5]} 5... exf6 {[%clk 0:04:51.3]} 6. Bb5 {[%clk 0:04:50]} 6... Bc5
{[%clk 0:04:49.7]} 7. Bxc6+ {[%clk 0:04:48.3]} 7... bxc6 {[%clk 0:04:47.3]} 8.
O-O {[%clk 0:04:45.7]} 8... O-O {[%clk 0:04:44.7]} 9. Nc3 {[%clk 0:04:42.9]}
9... Re8 {[%clk 0:04:43.8]} 10. Qh5 {[%clk 0:04:36.8]} 10... Bd6 {[%clk
0:04:38.7]} 11. Qh4 {[%clk 0:04:23.9]} 11... g5 {[%clk 0:04:34.1]} 12. Qh5
{[%clk 0:04:14]} 12... Bf5 {[%clk 0:04:29.7]} 13. Qe2 {[%clk 0:04:01.7]} 13...
Qe7 {[%clk 0:04:27.3]} 14. Qa6 {[%clk 0:03:48.5]} 14... Qe5 {[%clk 0:04:26.4]}
15. g3 {[%clk 0:03:41.6]} 15... Bh3 {[%clk 0:04:18.7]} 16. Re1 {[%clk
0:03:38.2]} 16... Qf5 {[%clk 0:04:18.1]} 17. d3 {[%clk 0:03:10.7]} 17... Qf3
{[%clk 0:04:15.9]} 0-1

[Event "Live Chess"]
[Site "Chess.com"]
[Date "2023.05.21"]
[Round "-"]
[White "ViktorTheCoolBoy"]
[Black "smoggyrabbit"]
[Result "1-0"]
[WhiteElo "2503"]
[BlackElo "1755"]
[TimeControl "300"]
[EndTime "20:51:16 PDT"]
[Termination "ViktorTheCoolBoy won on time"]

1. d4 {[%clk 0:04:53]} 1... e6 {[%clk 0:04:58.9]} 2. c4 {[%clk 0:04:52.1]} 2...
f5 {[%clk 0:04:57.5]} 3. Nc3 {[%clk 0:04:50]} 3... Nf6 {[%clk 0:04:56.2]} 4. Qc2
{[%clk 0:04:47.8]} 4... Bb4 {[%clk 0:04:52.9]} 5. f3 {[%clk 0:04:45.4]} 5... O-O
{[%clk 0:04:43.6]} 6. Bd2 {[%clk 0:04:44.4]} 6... Bxc3 {[%clk 0:04:32.5]} 7.
Bxc3 {[%clk 0:04:42.7]} 7... d5 {[%clk 0:04:17.4]} 8. e3 {[%clk 0:04:40.8]} 8...
c6 {[%clk 0:04:14.4]} 9. Nh3 {[%clk 0:04:35.9]} 9... Nbd7 {[%clk 0:03:58.3]} 10.
Nf4 {[%clk 0:04:32.4]} 10... Qe7 {[%clk 0:03:52.7]} 11. h4 {[%clk 0:04:28.8]}
11... e5 {[%clk 0:03:24.9]} 12. dxe5 {[%clk 0:04:27.4]} 12... Nxe5 {[%clk
0:03:23.5]} 13. cxd5 {[%clk 0:04:26.3]} 13... Nxd5 {[%clk 0:03:13.8]} 14. Bd2
{[%clk 0:04:22.8]} 14... Nxf4 {[%clk 0:03:08.4]} 15. exf4 {[%clk 0:04:21]} 15...
Nd3+ {[%clk 0:02:23.9]} 16. Kd1 {[%clk 0:04:19.7]} 16... Nf2+ {[%clk 0:02:22.6]}
17. Kc1 {[%clk 0:04:19.1]} 17... Nxh1 {[%clk 0:02:21.5]} 18. Bc4+ {[%clk
0:04:08.3]} 18... Be6 {[%clk 0:02:16.4]} 19. Be1 {[%clk 0:04:02.3]} 19... Bxc4
{[%clk 0:02:10.6]} 20. Qxc4+ {[%clk 0:04:00.8]} 20... Kh8 {[%clk 0:02:09]} 21.
Qf1 {[%clk 0:04:00.4]} 21... Rfe8 {[%clk 0:02:03.9]} 22. Bc3 {[%clk 0:03:58.5]}
22... Ng3 {[%clk 0:01:58.7]} 23. Qf2 {[%clk 0:03:57.6]} 23... Qe3+ {[%clk
0:01:54.7]} 24. Qxe3 {[%clk 0:03:56.9]} 24... Rxe3 {[%clk 0:01:53.5]} 25. Kd2
{[%clk 0:03:56.4]} 25... Re2+ {[%clk 0:01:51.7]} 26. Kd3 {[%clk 0:03:54.1]}
26... Rd8+ {[%clk 0:01:48.6]} 27. Kc4 {[%clk 0:03:52.5]} 27... Rxg2 {[%clk
0:01:38.9]} 28. Re1 {[%clk 0:03:50.2]} 28... Re2 {[%clk 0:01:36.9]} 29. Rg1
{[%clk 0:03:48.6]} 29... Nh5 {[%clk 0:01:19.2]} 30. Rg5 {[%clk 0:03:47.5]} 30...
Nf6 {[%clk 0:01:09.6]} 31. Rxf5 {[%clk 0:03:46.3]} 31... b5+ {[%clk 0:00:57.9]}
32. Kb3 {[%clk 0:03:43]} 32... Nd5 {[%clk 0:00:42.6]} 33. Be5 {[%clk 0:03:40.1]}
33... a5 {[%clk 0:00:36.2]} 34. Rf7 {[%clk 0:03:33.1]} 34... a4+ {[%clk
0:00:32.5]} 35. Ka3 {[%clk 0:03:32.4]} 35... Ra8 {[%clk 0:00:17.6]} 36. b4
{[%clk 0:03:24.4]} 36... axb3+ {[%clk 0:00:14.2]} 37. Kxb3 {[%clk 0:03:23.4]}
37... Re3+ {[%clk 0:00:11.5]} 38. Kb2 {[%clk 0:03:20.6]} 38... Rxf3 {[%clk
0:00:07.8]} 39. Rxg7 {[%clk 0:03:18]} 39... Rf2+ {[%clk 0:00:06]} 40. Kc1 {[%clk
0:03:17.2]} 40... Rf1+ {[%clk 0:00:04.6]} 41. Kd2 {[%clk 0:03:13.1]} 41... Rxa2+
{[%clk 0:00:02.2]} 42. Kd3 {[%clk 0:03:12.5]} 42... Rf3+ {[%clk 0:00:01.1]} 43.
Ke4 {[%clk 0:03:11]} 1-0

[Event "Live Chess"]
[Site "Chess.com"]
[Date "2023.05.21"]
[Round "-"]
[White "Singapourfeuj"]
[Black "KeithArkell"]
[Result "1-0"]
[WhiteElo "2169"]
[BlackElo "2556"]
[TimeControl "300"]
[EndTime "20:51:48 PDT"]
[Termination "Singapourfeuj won by resignation"]

1. Nf3 {[%clk 0:04:58.1]} 1... Nf6 {[%clk 0:04:58.6]} 2. d4 {[%clk 0:04:56.1]}
2... b5 {[%clk 0:04:57.7]} 3. a4 {[%clk 0:04:53.9]} 3... b4 {[%clk 0:04:56.7]}
4. g3 {[%clk 0:04:52.8]} 4... Bb7 {[%clk 0:04:55.4]} 5. Bg2 {[%clk 0:04:52.1]}
5... e6 {[%clk 0:04:55]} 6. O-O {[%clk 0:04:51.2]} 6... c5 {[%clk 0:04:54.4]} 7.
c3 {[%clk 0:04:48.7]} 7... Na6 {[%clk 0:04:51.5]} 8. Re1 {[%clk 0:04:47.4]} 8...
Be7 {[%clk 0:04:48.7]} 9. Nbd2 {[%clk 0:04:45.6]} 9... d5 {[%clk 0:04:46.6]} 10.
Ne5 {[%clk 0:04:43.9]} 10... O-O {[%clk 0:04:42.7]} 11. dxc5 {[%clk 0:04:40.2]}
11... Bxc5 {[%clk 0:04:40.7]} 12. Nb3 {[%clk 0:04:39]} 12... Bd6 {[%clk
0:04:38.6]} 13. Bf4 {[%clk 0:04:35.4]} 13... bxc3 {[%clk 0:04:36.7]} 14. bxc3
{[%clk 0:04:33.5]} 14... Qc7 {[%clk 0:04:34.7]} 15. Nd3 {[%clk 0:04:24.9]} 15...
Bxf4 {[%clk 0:04:32.9]} 16. Nxf4 {[%clk 0:04:23.6]} 16... Qxc3 {[%clk
0:04:31.6]} 17. Rc1 {[%clk 0:04:22.1]} 17... Qe5 {[%clk 0:04:30.5]} 18. Nd4
{[%clk 0:04:19.8]} 18... Rac8 {[%clk 0:04:24.7]} 19. e3 {[%clk 0:04:18.1]} 19...
Nc5 {[%clk 0:04:19.9]} 20. a5 {[%clk 0:04:14.5]} 20... Ba6 {[%clk 0:04:15.5]}
21. Qd2 {[%clk 0:04:09.9]} 21... g5 {[%clk 0:04:09.8]} 22. Nh3 {[%clk
0:04:06.1]} 22... Nd3 {[%clk 0:04:03.1]} 23. Rxc8 {[%clk 0:04:02.6]} 23... Rxc8
{[%clk 0:04:03]} 24. Rb1 {[%clk 0:03:58.2]} 24... Ne4 {[%clk 0:03:56.3]} 25.
Bxe4 {[%clk 0:03:55.5]} 25... dxe4 {[%clk 0:03:55.5]} 26. f4 {[%clk 0:03:50.2]}
26... exf3 {[%clk 0:03:33.4]} 27. Nxf3 {[%clk 0:03:47.8]} 27... Qf5 {[%clk
0:03:10.1]} 28. Nfxg5 {[%clk 0:03:45.7]} 28... h6 {[%clk 0:03:08.5]} 29. e4
{[%clk 0:03:44]} 29... Qg4 {[%clk 0:03:05.6]} 30. Nxf7 {[%clk 0:03:41.9]} 30...
Qxh3 {[%clk 0:03:03]} 31. Nxh6+ {[%clk 0:03:37]} 31... Kg7 {[%clk 0:03:01.5]}
32. Qg5+ {[%clk 0:03:35.5]} 32... Kh7 {[%clk 0:03:00.9]} 33. Ng4 {[%clk
0:03:29.1]} 33... Rf8 {[%clk 0:02:44.6]} 34. Nf6+ {[%clk 0:03:19]} 34... Kh8
{[%clk 0:02:43.7]} 35. Nh5 {[%clk 0:03:06.7]} 1-0

[Event "Live Chess"]
[Site "Chess.com"]
[Date "2023.05.21"]
[Round "-"]
[White "ramses-IIG"]
[Black "Conradical12"]
[Result "0-1"]
[WhiteElo "870"]
[BlackElo "1635"]
[TimeControl "300"]
[EndTime "20:51:57 PDT"]
[Termination "Conradical12 won by resignation"]

1. e4 {[%clk 0:04:58.5]} 1... e5 {[%clk 0:04:59.2]} 2. Nf3 {[%clk 0:04:58.4]}
2... Nc6 {[%clk 0:04:58]} 3. Bc4 {[%clk 0:04:54.9]} 3... Nf6 {[%clk 0:04:57.2]}
4. d3 {[%clk 0:04:53.3]} 4... Bc5 {[%clk 0:04:55.8]} 5. Ng5 {[%clk 0:04:51.6]}
5... O-O {[%clk 0:04:48.5]} 6. h4 {[%clk 0:04:50.1]} 6... h6 {[%clk 0:04:47.1]}
7. c3 {[%clk 0:04:48.1]} 7... d6 {[%clk 0:04:38.3]} 8. Nf3 {[%clk 0:04:40.7]}
8... Ng4 {[%clk 0:04:36.5]} 9. Bb5 {[%clk 0:04:33.2]} 9... Nxf2 {[%clk
0:04:33.7]} 10. Qb3 {[%clk 0:04:29]} 10... Be6 {[%clk 0:04:29.9]} 11. Bxc6
{[%clk 0:04:28.8]} 11... Bxb3 {[%clk 0:04:27.8]} 12. Rf1 {[%clk 0:04:26.2]} 0-1

[Event "Live Chess"]
[Site "Chess.com"]
[Date "2023.05.21"]
[Round "-"]
[White "tpm07"]
[Black "Fazer180"]
[Result "1/2-1/2"]
[WhiteElo "1944"]
[BlackElo "1748"]
[TimeControl "300"]
[EndTime "20:52:02 PDT"]
[Termination "Game drawn by agreement"]

1. e4 {[%clk 0:04:57.9]} 1... e6 {[%clk 0:04:58.9]} 2. Nf3 {[%clk 0:04:55.2]}
2... d5 {[%clk 0:04:58.2]} 3. Nc3 {[%clk 0:04:54.4]} 3... c5 {[%clk 0:04:55]} 4.
exd5 {[%clk 0:04:53]} 4... exd5 {[%clk 0:04:53.2]} 5. d4 {[%clk 0:04:52.6]} 5...
Nf6 {[%clk 0:04:49.9]} 6. Bg5 {[%clk 0:04:50.3]} 6... Be6 {[%clk 0:04:45.3]} 7.
Bb5+ {[%clk 0:04:46.8]} 7... Nc6 {[%clk 0:04:43.5]} 8. dxc5 {[%clk 0:04:41.9]}
8... h6 {[%clk 0:04:23.7]} 9. Bxf6 {[%clk 0:04:28.2]} 9... Qxf6 {[%clk
0:04:20.4]} 10. O-O {[%clk 0:04:16.1]} 10... Bxc5 {[%clk 0:04:12.2]} 11. Nxd5
{[%clk 0:04:10.2]} 11... Bxd5 {[%clk 0:03:58.1]} 12. Qxd5 {[%clk 0:04:05]} 12...
Be7 {[%clk 0:03:48.6]} 13. Nd4 {[%clk 0:03:53.8]} 13... Rc8 {[%clk 0:03:29.1]}
14. Nf5 {[%clk 0:03:27.9]} 14... O-O {[%clk 0:03:02.1]} 15. Bxc6 {[%clk
0:03:25.1]} 15... Rxc6 {[%clk 0:02:55.2]} 16. Nxe7+ {[%clk 0:03:13.7]} 16...
Qxe7 {[%clk 0:02:53.5]} 17. c3 {[%clk 0:03:08.8]} 17... Rd8 {[%clk 0:02:47.9]}
18. Qb5 {[%clk 0:03:02.7]} 18... Rb6 {[%clk 0:02:43.5]} 19. Qa5 {[%clk
0:02:58.4]} 19... Rxb2 {[%clk 0:02:28]} 20. Qxa7 {[%clk 0:02:56]} 20... Rc8
{[%clk 0:02:22.1]} 21. Rab1 {[%clk 0:02:46.4]} 21... Rxb1 {[%clk 0:02:04]} 22.
Rxb1 {[%clk 0:02:46.3]} 22... Rxc3 {[%clk 0:02:01.8]} 23. h3 {[%clk 0:02:37.4]}
23... Rc2 {[%clk 0:01:46]} 24. Qxb7 {[%clk 0:02:25.5]} 24... Qxb7 {[%clk
0:01:41.5]} 25. Rxb7 {[%clk 0:02:24.6]} 25... Rxa2 {[%clk 0:01:41.1]} 1/2-1/2

[Event "Live Chess"]
[Site "Chess.com"]
[Date "2023.05.21"]
[Round "-"]
[White "Long1968"]
[Black "BostonStrangler"]
[Result "0-1"]
[WhiteElo "1062"]
[BlackElo "2068"]
[TimeControl "300"]
[EndTime "20:53:58 PDT"]
[Termination "BostonStrangler won on time"]

1. e4 {[%clk 0:04:57.2]} 1... c5 {[%clk 0:04:58.9]} 2. c3 {[%clk 0:04:55.2]}
2... d5 {[%clk 0:04:56.3]} 3. exd5 {[%clk 0:04:51.2]} 3... Qxd5 {[%clk
0:04:56.2]} 4. d4 {[%clk 0:04:48.2]} 4... Nc6 {[%clk 0:04:53.2]} 5. Nf3 {[%clk
0:04:44.4]} 5... Bg4 {[%clk 0:04:52.1]} 6. Be2 {[%clk 0:04:41.7]} 6... cxd4
{[%clk 0:04:46.8]} 7. cxd4 {[%clk 0:04:39.1]} 7... e6 {[%clk 0:04:46.3]} 8. Nc3
{[%clk 0:04:35.5]} 8... Qd7 {[%clk 0:04:45.3]} 9. O-O {[%clk 0:04:31.6]} 9...
Nf6 {[%clk 0:04:43.1]} 10. Bg5 {[%clk 0:04:06.9]} 10... Be7 {[%clk 0:04:33.5]}
11. Ne5 {[%clk 0:03:47.3]} 11... Nxe5 {[%clk 0:04:28.8]} 12. dxe5 {[%clk
0:03:40.7]} 12... Qxd1 {[%clk 0:04:24.7]} 13. Raxd1 {[%clk 0:03:35.5]} 13...
Bxe2 {[%clk 0:04:21]} 14. Nxe2 {[%clk 0:03:33.3]} 14... Nd7 {[%clk 0:04:16]} 15.
Bxe7 {[%clk 0:03:28.1]} 15... Kxe7 {[%clk 0:04:15.9]} 16. Rd6 {[%clk 0:03:21.5]}
16... Nxe5 {[%clk 0:04:12.7]} 17. Rfd1 {[%clk 0:03:12.9]} 17... Rhd8 {[%clk
0:04:11]} 18. R6d2 {[%clk 0:02:46.3]} 18... Nc4 {[%clk 0:04:00.8]} 19. Rxd8
{[%clk 0:02:29.1]} 19... Rxd8 {[%clk 0:04:00.7]} 20. Rc1 {[%clk 0:02:06.6]}
20... Rd2 {[%clk 0:03:30.7]} 21. b3 {[%clk 0:01:37.9]} 21... Rxe2 {[%clk
0:03:24.6]} 22. Kf1 {[%clk 0:01:26]} 22... Rxa2 {[%clk 0:03:19.7]} 23. Rxc4
{[%clk 0:01:21.8]} 23... Kd7 {[%clk 0:03:17.7]} 24. Rg4 {[%clk 0:01:10.9]} 24...
g6 {[%clk 0:03:15.6]} 25. h4 {[%clk 0:01:04.7]} 25... h5 {[%clk 0:03:13.8]} 26.
Rf4 {[%clk 0:01:00.1]} 26... Ke7 {[%clk 0:03:12.2]} 27. Rb4 {[%clk 0:00:50]}
27... b6 {[%clk 0:03:10.7]} 28. Rc4 {[%clk 0:00:45.4]} 28... Ra3 {[%clk
0:02:58.8]} 29. b4 {[%clk 0:00:33.3]} 29... b5 {[%clk 0:02:44]} 30. Rc7+ {[%clk
0:00:19.7]} 30... Kf6 {[%clk 0:02:39.6]} 31. Rc5 {[%clk 0:00:14.1]} 31... a6
{[%clk 0:02:36.2]} 32. Rc6 {[%clk 0:00:11.1]} 32... Rb3 {[%clk 0:02:32.5]} 33.
Rxa6 {[%clk 0:00:07.4]} 33... Rxb4 {[%clk 0:02:31.7]} 34. Ke2 {[%clk 0:00:03.7]}
34... Rxh4 {[%clk 0:02:28]} 0-1

[Event "Live Chess"]
[Site "Chess.com"]
[Date "2023.05.21"]
[Round "-"]
[White "LutherSullivan"]
[Black "raminguy"]
[Result "1-0"]
[WhiteElo "2211"]
[BlackElo "1947"]
[TimeControl "300"]
[EndTime "20:54:25 PDT"]
[Termination "LutherSullivan won on time"]

1. e4 {[%clk 0:04:56.5]} 1... e5 {[%clk 0:04:58.9]} 2. Nf3 {[%clk 0:04:52.3]}
2... Nc6 {[%clk 0:04:58.2]} 3. Bc4 {[%clk 0:04:51.9]} 3... Bc5 {[%clk
0:04:56.8]} 4. d3 {[%clk 0:04:50.6]} 4... Nf6 {[%clk 0:04:56.1]} 5. O-O {[%clk
0:04:17.7]} 5... h6 {[%clk 0:04:53.3]} 6. Nbd2 {[%clk 0:03:58.8]} 6... O-O
{[%clk 0:04:51.8]} 7. c3 {[%clk 0:03:53.2]} 7... a5 {[%clk 0:04:48.6]} 8. d4
{[%clk 0:03:42.7]} 8... exd4 {[%clk 0:04:46.7]} 9. e5 {[%clk 0:03:39.7]} 9...
Ng4 {[%clk 0:04:18.3]} 10. Ne4 {[%clk 0:03:32.8]} 10... d5 {[%clk 0:04:09.2]}
11. Nxc5 {[%clk 0:03:14.3]} 11... dxc4 {[%clk 0:04:06.3]} 12. cxd4 {[%clk
0:03:13.4]} 12... b6 {[%clk 0:03:55.5]} 13. Ne4 {[%clk 0:03:10.2]} 13... Bf5
{[%clk 0:03:41.2]} 14. Re1 {[%clk 0:03:08]} 14... Ncxe5 {[%clk 0:03:20.6]} 15.
Nxe5 {[%clk 0:02:58.5]} 15... Nxe5 {[%clk 0:03:18.7]} 16. Ng3 {[%clk 0:02:51.1]}
16... Nd3 {[%clk 0:03:08.3]} 17. Nxf5 {[%clk 0:02:47.7]} 17... Nxe1 {[%clk
0:03:07.1]} 18. Qxe1 {[%clk 0:02:46.9]} 18... Qf6 {[%clk 0:03:03.3]} 19. Ng3
{[%clk 0:02:34.5]} 19... Qxd4 {[%clk 0:02:58]} 20. Rb1 {[%clk 0:02:17.4]} 20...
Rfe8 {[%clk 0:02:55.8]} 21. Be3 {[%clk 0:02:16.9]} 21... Qf6 {[%clk 0:02:48.8]}
22. Qe2 {[%clk 0:02:14.1]} 22... Qg6 {[%clk 0:02:41.8]} 23. Rf1 {[%clk
0:02:06.5]} 23... b5 {[%clk 0:02:35.8]} 24. h4 {[%clk 0:02:00.7]} 24... f5
{[%clk 0:02:26.1]} 25. h5 {[%clk 0:01:57.3]} 25... Qf7 {[%clk 0:02:15.1]} 26.
Qf3 {[%clk 0:01:55.8]} 26... Rad8 {[%clk 0:01:58.8]} 27. Nxf5 {[%clk 0:01:47.4]}
27... Re5 {[%clk 0:01:46.7]} 28. g4 {[%clk 0:01:43.6]} 28... b4 {[%clk
0:01:39.6]} 29. Qg3 {[%clk 0:01:24.7]} 29... Rde8 {[%clk 0:01:27.7]} 30. Bd4
{[%clk 0:01:21.1]} 30... Rd5 {[%clk 0:01:11.9]} 31. Rc1 {[%clk 0:00:59.2]} 31...
c5 {[%clk 0:01:01.6]} 32. Bxg7 {[%clk 0:00:55.8]} 32... Rxf5 {[%clk 0:00:59]}
33. gxf5 {[%clk 0:00:54.9]} 33... Qxg7 {[%clk 0:00:55.9]} 34. Rxc4 {[%clk
0:00:51]} 34... Re1+ {[%clk 0:00:50]} 35. Kg2 {[%clk 0:00:48.6]} 35... Qxg3+
{[%clk 0:00:47.6]} 36. Kxg3 {[%clk 0:00:44.6]} 36... Re5 {[%clk 0:00:44.1]} 37.
Kf4 {[%clk 0:00:41.4]} 37... Rd5 {[%clk 0:00:43.1]} 38. Ke4 {[%clk 0:00:39.4]}
38... Rd2 {[%clk 0:00:42.1]} 39. Rxc5 {[%clk 0:00:37]} 39... Rxb2 {[%clk
0:00:40.9]} 40. Rxa5 {[%clk 0:00:35.3]} 40... Rxf2 {[%clk 0:00:40]} 41. Ra7
{[%clk 0:00:32.3]} 41... Rh2 {[%clk 0:00:35.6]} 42. Ke5 {[%clk 0:00:30.3]} 42...
Rxh5 {[%clk 0:00:28.4]} 43. Kf6 {[%clk 0:00:29.2]} 43... Rh2 {[%clk 0:00:25]}
44. Kg6 {[%clk 0:00:19.1]} 44... Rg2+ {[%clk 0:00:23.5]} 45. Kxh6 {[%clk
0:00:18]} 45... Kf8 {[%clk 0:00:21.7]} 46. Rb7 {[%clk 0:00:16.4]} 46... Rxa2
{[%clk 0:00:19.9]} 47. Rxb4 {[%clk 0:00:15.1]} 47... Rf2 {[%clk 0:00:18.3]} 48.
Kg6 {[%clk 0:00:14.1]} 48... Ke7 {[%clk 0:00:07.2]} 49. Rb7+ {[%clk 0:00:13.4]}
49... Kd6 {[%clk 0:00:03.2]} 50. Kf6 {[%clk 0:00:13]} 50... Rf1 {[%clk
0:00:01.1]} 51. Ra7 {[%clk 0:00:12.4]} 1-0

[Event "Live Chess"]
[Site "Chess.com"]
[Date "2023.05.21"]
[Round "-"]
[White "matt1979"]
[Black "VIDYUTGANESH"]
[Result "1/2-1/2"]
[WhiteElo "1502"]
[BlackElo "1657"]
[TimeControl "300"]
[EndTime "20:54:29 PDT"]
[Termination "Game drawn by agreement"]

1. f4 {[%clk 0:04:55.7]} 1... e6 {[%clk 0:04:59.9]} 2. Nf3 {[%clk 0:04:53.1]}
2... Ne7 {[%clk 0:04:59.8]} 3. e3 {[%clk 0:04:50.9]} 3... d5 {[%clk 0:04:56]} 4.
b3 {[%clk 0:04:49.6]} 4... f6 {[%clk 0:04:51.8]} 5. Bb2 {[%clk 0:04:48]} 5...
Ng6 {[%clk 0:04:51.3]} 6. d3 {[%clk 0:04:42]} 6... Be7 {[%clk 0:04:46.7]} 7. Be2
{[%clk 0:04:37.7]} 7... O-O {[%clk 0:04:41.7]} 8. O-O {[%clk 0:04:36.1]} 8... f5
{[%clk 0:04:33.1]} 9. Ne5 {[%clk 0:04:30.2]} 9... Nxe5 {[%clk 0:04:31.4]} 10.
Bxe5 {[%clk 0:04:28]} 10... Bf6 {[%clk 0:04:29.9]} 11. Bxf6 {[%clk 0:04:25.6]}
11... Qxf6 {[%clk 0:04:29.8]} 12. Nd2 {[%clk 0:04:21.9]} 12... Nc6 {[%clk
0:04:28]} 13. Nf3 {[%clk 0:04:17.2]} 13... e5 {[%clk 0:04:25.5]} 14. fxe5 {[%clk
0:04:14.7]} 14... Nxe5 {[%clk 0:04:25.4]} 15. Nxe5 {[%clk 0:04:12.9]} 15... Qxe5
{[%clk 0:04:25.3]} 16. Qd2 {[%clk 0:04:07.1]} 16... Re8 {[%clk 0:04:24.1]} 17.
Rf3 {[%clk 0:03:53.5]} 17... d4 {[%clk 0:04:13.7]} 18. e4 {[%clk 0:03:36.3]}
18... fxe4 {[%clk 0:04:11.2]} 19. dxe4 {[%clk 0:03:28.7]} 19... Qxe4 {[%clk
0:04:11.1]} 20. Re1 {[%clk 0:03:20.3]} 20... Kh8 {[%clk 0:04:09]} 21. Rff1
{[%clk 0:03:14.1]} 21... Bg4 {[%clk 0:03:48.8]} 22. Bd3 {[%clk 0:03:11.9]} 22...
Qd5 {[%clk 0:03:37]} 23. Qf4 {[%clk 0:03:06.3]} 23... Rxe1 {[%clk 0:03:32.5]}
24. Rxe1 {[%clk 0:03:00.1]} 24... Be6 {[%clk 0:03:16.8]} 25. Bc4 {[%clk
0:02:53.5]} 25... Qf5 {[%clk 0:03:04.2]} 26. Qxf5 {[%clk 0:02:36.3]} 26... Bxf5
{[%clk 0:03:04.1]} 27. Re7 {[%clk 0:02:33.4]} 27... Bxc2 {[%clk 0:02:50]} 28.
Rxc7 {[%clk 0:02:26.6]} 28... d3 {[%clk 0:02:48.4]} 29. Rd7 {[%clk 0:02:23.7]}
29... Bb1 {[%clk 0:02:21.6]} 30. Bxd3 {[%clk 0:02:15.1]} 30... Bxa2 {[%clk
0:02:18.7]} 31. Rxb7 {[%clk 0:02:13.4]} 31... a5 {[%clk 0:01:57.1]} 32. Be4
{[%clk 0:02:04.5]} 32... Re8 {[%clk 0:01:50.7]} 33. Bd5 {[%clk 0:01:59.6]} 33...
a4 {[%clk 0:01:29.4]} 34. Bf7 {[%clk 0:01:50.8]} 34... Rf8 {[%clk 0:01:17.2]}
35. Bc4 {[%clk 0:01:36.8]} 35... h6 {[%clk 0:01:10.8]} 36. Rb4 {[%clk
0:01:27.5]} 36... axb3 {[%clk 0:01:00.7]} 37. Bxb3 {[%clk 0:01:25.3]} 37... Bxb3
{[%clk 0:00:55.5]} 38. Rxb3 {[%clk 0:01:24]} 1/2-1/2